[Event "European Women Blitz-ch 2024"]
[Site "Monaco"]
[Date "2025.01.10"]
[Round "11.10"]
[White "Javakhishvili, Lela"]
[Black "Narva, Mai"]
[Result "0-1"]
[Annotator "TA"]
[ECO "A05"]
[WhiteElo "2426"]
[BlackElo "2398"]
[PlyCount "96"]
[EventDate "2025.01.06"]
[EventType "swiss"]
[EventCountry "MNC"]
[SourceTitle "playchess.com"]
[Source "ChessBase"]
[SourceQuality "1"]
[TimeControl "180+2"]

{[%evp 14,96,19,14,53,30,29,0,20,3,47,40,27,-43,-19,-64,-6,-33,0,0,0,0,0,-254,-250,-255,-251,-293,-288,-366,-366,-389,-392,-381,-329,-356,-268,-347,-358,-343,-360,-335,-207,-200,-186,-195,-187,-182,-184,-241,-233,-289,-229,-203,-189,-182,-177,-224,-232,-218,-177,-254,-267,-272,-282,-272,-272,-419,-451,-626,-597,-567,-309,-332,-330,-527,-521,-29951,-29936,-29958,-29961,-29966,-29968,-29968,-5708]} 1. Nf3 {[%emt 0:00:01]} Nf6 {[%emt 0:00:01]} 2. b3 {[%emt 0:00:01]} c5 {[%emt 0:00:09]} 3. Bb2 {[%emt 0:00:03]} Nc6 {[%emt 0:00:07]} 4. g3 {[%emt 0:00:03]} d6 {[%emt 0:00:23]} 5. Bg2 {[%emt 0:00:04]} e5 {[%emt 0:00:05]} 6. O-O {[%emt 0:00:03]} Be7 {[%emt 0:00:02]} 7. c4 {[%emt 0:00:02]} O-O {[%emt 0:00:03]} 8. Nc3 {[%emt 0:00:02]} h6 {[%emt 0:00:05]} 9. d3 {[%emt 0:00:21]} Be6 {[%emt 0:00:05]} 10. Rc1 {[%emt 0:00:06]} a6 {[%emt 0:00:07]} 11. Nd2 {[%emt 0:00:05]} d5 {[%emt 0:00:18]} 12. cxd5 {[%emt 0:00:03]} Nxd5 {[%emt 0:00:02]} 13. Nde4 {[%emt 0:00:29]} (13. Nc4 $11) 13... b6 {[%emt 0:00:11]} 14. e3 {[%emt 0:00:21]} Rc8 {[%emt 0:00:08]} (14... Ndb4 $15 15. Qe2 Qd7 (15... Nxd3 16. Rcd1 $11) (15... Qxd3 16. Qh5 $11)) 15. Qe2 {[%emt 0:00:02]} f5 {[%emt 0:00:14]} 16. Nd2 {[%emt 0:00:03]} Ndb4 {[%emt 0:00:07]} 17. Nc4 {[%emt 0:00:21]} b5 {[%emt 0:00:07]} (17... Nxd3 18. Rcd1 e4 19. Nxe4 $14) 18. Nd2 $2 {[%emt 0:00:23][%mdl 8192]} (18. Rcd1 $11 {and White has nothing to worry.}) 18... Nxd3 $19 {[%emt 0:00:10]} 19. Rb1 {[%emt 0:00:02]} Nxb2 {[%emt 0:00:04]} (19... e4 20. Ba1 $19) 20. Rxb2 {[%emt 0:00:01]} e4 {[%emt 0:00:07]} 21. f3 {[%emt 0:00:07]} Bf6 {[%emt 0:00:04]} 22. Rc2 {[%emt 0:00:01]} Nb4 {[%emt 0:00:17]} 23. Rcc1 {[%emt 0:00:01]} Qd3 {[%emt 0:00:10]} 24. fxe4 {[%emt 0:00:06]} Rcd8 {[%emt 0:00:10]} (24... Bxc3 25. Qxd3 Nxd3 26. Rxc3 fxe4 27. Bxe4 Rxf1+ 28. Kxf1 $11) 25. Qxd3 {[%emt 0:00:16]} Nxd3 {[%emt 0:00:09]} (25... Rxd3 26. exf5 Bxc3 27. Ne4 Nxa2 (27... Rxf5 28. Rxc3 Rxf1+ 29. Bxf1 $17) (27... Bxf5 28. Nxc3 Rxe3 29. a4 $17) 28. fxe6 Nxc1 (28... Rxe3 29. e7 $11) 29. Rxc1 $17) 26. Nd5 {[%emt 0:00:23]} Nxc1 {[%emt 0:00:08]} 27. Rxc1 {[%emt 0:00:01]} Bxd5 {[%emt 0:00:14]} 28. exd5 {[%emt 0:00:01]} Bg5 {[%emt 0:00:02]} 29. Kf2 {[%emt 0:00:03]} Rfe8 {[%emt 0:00:01]} 30. Nf1 {[%emt 0:00:01]} Rc8 {[%emt 0:00:06]} 31. h4 {[%emt 0:00:07]} (31. d6 Red8 32. h4) 31... Be7 $19 {[%emt 0:00:02]} 32. Bh3 {[%emt 0:00:03]} g6 {[%emt 0:00:03]} 33. h5 {[%emt 0:00:01]} Kg7 {[%emt 0:00:00]} (33... gxh5 34. Bxf5 Rf8 35. e4 $17) 34. hxg6 {[%emt 0:00:02]} Kxg6 {[%emt 0:00:02]} 35. Nd2 {[%emt 0:00:01]} (35. e4 fxe4 36. Bxc8 Rf8+ (36... Rxc8 $2 37. Rd1 $17) 37. Ke2 Rxc8 38. Ne3) 35... Bg5 $19 {[%emt 0:00:02]} 36. Rc3 {[%emt 0:00:05]} Re5 {[%emt 0:00:02]} 37. Rd3 {[%emt 0:00:03]} (37. Nf3 Ree8 (37... Rxd5 38. e4 $11) 38. d6) 37... Rce8 $19 {[%emt 0:00:02]} 38. Nf1 {[%emt 0:00:02]} c4 {[%emt 0:00:02]} 39. bxc4 {[%emt 0:00:02]} bxc4 {[%emt 0:00:01]} 40. Rd4 {[%emt 0:00:01]} (40. Rc3 $142) 40... Rxe3 $19 {[%emt 0:00:05]} ({Don't do} 40... Bxe3+ 41. Nxe3 Rxe3 42. Bf1) 41. d6 {[%emt 0:00:04]} Re2+ {[%emt 0:00:02]} 42. Kf3 {[%emt 0:00:01]} Re1 {[%emt 0:00:02]} 43. d7 {[%emt 0:00:02]} Rd8 {[%emt 0:00:01]} 44. Nd2 {[%emt 0:00:03]} (44. Rxc4 {is a better defense.} a5 (44... Rxd7 $2 45. Ra4 $19) 45. Rc5) 44... Re3+ {[%emt 0:00:02]} 45. Kg2 {[%emt 0:00:03]} Re2+ {[%emt 0:00:01]} 46. Kf3 {[%emt 0:00:01]} Rxd2 {[%emt 0:00:02]} 47. Rxc4 {[%emt 0:00:08]} R8xd7 {[%emt 0:00:01]} 48. Rc6+ {[%emt 0:00:01]} R7d6 {[%emt 0:00:01]} 0-1

[Event "European Women Blitz-ch 2024"]
[Site "Monaco"]
[Date "2025.01.10"]
[Round "11.11"]
[White "Bellaiche, Elise"]
[Black "Cramling Bellon, Anna"]
[Result "0-1"]
[Annotator "TA"]
[ECO "B22"]
[WhiteElo "2021"]
[BlackElo "2052"]
[PlyCount "102"]
[EventDate "2025.01.06"]
[EventType "swiss"]
[EventCountry "MNC"]
[SourceTitle "playchess.com"]
[Source "ChessBase"]
[SourceQuality "1"]
[TimeControl "180+2"]

{[%evp 20,102,-9,-22,-12,-26,-15,-20,-3,-20,-26,-59,4,0,5,-18,-17,-20,-22,-53,-29,-74,-52,-149,-68,-104,-95,-231,-135,-179,-158,-242,-204,-197,-194,-284,-235,-348,-347,-436,-318,-321,-296,-346,-318,-318,-307,-269,-111,-306,-243,-247,-235,-215,-126,-204,-205,-214,-41,-217,-200,-257,-259,-414,-406,-633,-274,-264,-252,-283,-285,-392,-295,-393,-381,-1158,-766,-5810,-1239,-29982,-29980,-29991,-29992,-29992,-29993]} 1. e4 {[%emt 0:00:01]} c5 {[%emt 0:00:00]} 2. Nf3 {[%emt 0:00:02]} Nc6 {[%emt 0:00:01]} 3. c3 {[%emt 0:00:02]} Nf6 {[%emt 0:00:03]} 4. e5 {[%emt 0:00:00]} Nd5 {[%emt 0:00:01]} 5. d4 {[%emt 0:00:01]} cxd4 {[%emt 0:00:02]} 6. cxd4 {[%emt 0:00:01]} d6 {[%emt 0:00:01]} 7. Bc4 {[%emt 0:00:06]} e6 {[%emt 0:00:09]} 8. O-O {[%emt 0:00:09]} Be7 {[%emt 0:00:03]} 9. Re1 {[%emt 0:00:19]} O-O {[%emt 0:00:03]} 10. Nc3 {[%emt 0:00:10]} dxe5 {[%emt 0:00:13]} 11. Nxe5 {[%emt 0:00:21]} Nxe5 {[%emt 0:00:10]} 12. Rxe5 {[%emt 0:00:25][%cal Rc4d5]} Bf6 {[%emt 0:00:18]} 13. Re1 {[%emt 0:00:10]} Nb6 {[%emt 0:00:07]} 14. Bd3 {[%emt 0:00:18]} Bxd4 {[%emt 0:00:06]} 15. Be3 {[%emt 0:00:05]} e5 {[%emt 0:00:27]} (15... Bxe3 $15 16. Rxe3 Rb8) 16. Bxd4 {[%emt 0:00:09]} exd4 {[%emt 0:00:02]} 17. Ne4 {[%emt 0:00:01]} Bf5 {[%emt 0:00:25]} 18. Qf3 {[%emt 0:00:05]} Bg6 {[%emt 0:00:13]} 19. Rad1 {[%emt 0:00:02]} Rc8 {[%emt 0:00:09]} 20. h3 {[%emt 0:00:02]} Qd5 {[%emt 0:00:06][%cal Of8e8]} 21. Qg3 {[%emt 0:00:11]} ({White should play} 21. Nd2 $15) 21... Qxa2 {[%emt 0:01:05]} (21... Rce8 $1 $17 {[%cal Rg6e4]} 22. f3 Qxa2) 22. h4 {[%emt 0:00:05][%cal Oh4h5]} Qd5 {[%emt 0:00:00]} 23. Bb1 {[%emt 0:00:15]} (23. Ng5 $17) 23... Nc4 {[%emt 0:00:00]} (23... Rfe8 $19 {[%cal Rg6e4]} 24. f3 Rcd8) 24. b3 {[%emt 0:00:09]} Na3 {[%emt 0:00:00]} 25. Bd3 {[%emt 0:00:01]} (25. Qf3 $17 Kh8 (25... Nxb1 26. Nf6+ gxf6 27. Qxd5 $18) 26. Bd3) 25... Nc2 {[%emt 0:00:00]} 26. Bxc2 {[%emt 0:00:09]} Rxc2 {[%emt 0:00:00]} 27. Ng5 {[%emt 0:00:02]} (27. Qd3 Rb2 28. Qxd4 Qxd4 (28... Qxb3 29. Nc5 $17) 29. Rxd4) 27... h6 {[%emt 0:00:00]} 28. Nf3 {[%emt 0:00:03]} (28. Re5 $142 Qd7 29. h5) 28... d3 $19 {[%emt 0:00:00][%cal Of8d8]} (28... Qxb3 29. Rxd4 Qb6 30. Rd7 $19) 29. Rd2 {[%emt 0:00:02]} Rxd2 {[%emt 0:00:02]} 30. Nxd2 {[%emt 0:00:01]} Rc8 {[%emt 0:00:01]} 31. Re5 {[%emt 0:00:05]} Rc1+ {[%emt 0:00:07]} 32. Kh2 {[%emt 0:00:02]} Qd8 {[%emt 0:00:07]} 33. h5 {[%emt 0:00:03] [#]} Bh7 {[%emt 0:00:01]} (33... f6 $1 $19 {[%cal Rf6e5]} 34. Re3 Bh7 (34... Bxh5 $2 35. Rxd3 Qc7 36. Qxc7 $19)) 34. Qe3 $2 {[%emt 0:00:01]} (34. Rd5 $17 Qc8 (34... Qxd5 35. Qb8+) 35. Nc4) 34... Rc8 {[%emt 0:00:03]} 35. g3 {[%emt 0:00:07] Dodges Qh4+} f6 {[%emt 0:00:03]} 36. Re7 {[%emt 0:00:29] [#]} Qf8 {[%emt 0:00:01]} ({Better is} 36... Kh8 $1 $19 37. Rxb7 Qd5) 37. Qe6+ {[%emt 0:00:00]} (37. Rxb7 $17 {was necessary.} Qe8 38. Qxe8+ Rxe8 39. Rxa7) 37... Kh8 {[%emt 0:00:01]} 38. Qe3 {[%emt 0:00:00]} f5 $2 {[%emt 0:00:04]} (38... Bg8 $19 {and ...Qd8 would now be decisive} 39. Rxb7 Rc5) 39. Re5 $2 {[%emt 0:00:00] [#]} (39. Rxb7 $15 f4 40. Qxf4) 39... f4 $1 {[%emt 0:00:01]} 40. gxf4 {[%emt 0:00:00]} (40. Qxf4 Qxf4) 40... Qf7 {[%emt 0:00:01]} 41. Re7 {[%emt 0:00:00]} (41. Kg3 $142) 41... Qxh5+ {[%emt 0:00:02]} 42. Kg2 {[%emt 0:00:00]} (42. Qh3 $142 Qc5 43. Kg2) 42... Qg4+ {[%emt 0:00:01]} (42... Rc1 $142 {( -> ...Qh1+)} 43. Re8+ Bg8) 43. Qg3 {[%emt 0:00:00]} Qxg3+ {[%emt 0:00:02]} 44. Kxg3 {[%emt 0:00:00][%mdl 4096] Endgame KRB-KRN. Black is two pawns up.} Rc2 {[%emt 0:00:03]} 45. Re8+ {[%emt 0:00:05]} Bg8 {[%emt 0:00:01]} 46. Nf3 {[%emt 0:00:03]} Kh7 {[%emt 0:00:04]} 47. Nd4 $2 {[%emt 0:00:06]} (47. Re7) 47... Rc3 {[%emt 0:00:01] ( -> ...d2+)} 48. Nf5 {[%emt 0:00:02]} Bxb3 {[%emt 0:00:03]} (48... Bd5 $142 49. Re3 d2 (49... Rxb3 $2 50. Ne7 $19) (49... Bxb3 $2 50. Nd4 $19) 50. Rxc3 d1=Q (50... d1=R $2 51. f3 $17)) 49. Re7 {[%emt 0:00:02]} d2+ {[%emt 0:00:01]} 50. Kg2 {[%emt 0:00:02]} d1=Q {[%emt 0:00:08]} 51. Rxg7+ {[%emt 0:00:01]} Kh8 {[%emt 0:00:00]} 0-1

[Event "European Women Blitz-ch 2024"]
[Site "Monaco"]
[Date "2025.01.10"]
[Round "11.12"]
[White "Vega Gutierrez, Sabrina"]
[Black "Atalik, Ekaterina"]
[Result "0-1"]
[Annotator "TA"]
[ECO "C11"]
[WhiteElo "2393"]
[BlackElo "2395"]
[PlyCount "88"]
[EventDate "2025.01.06"]
[EventType "swiss"]
[EventCountry "MNC"]
[SourceTitle "playchess.com"]
[Source "ChessBase"]
[SourceQuality "1"]
[TimeControl "180+2"]

{[%evp 18,88,0,0,14,13,27,0,0,-21,-21,-19,4,-12,-15,-17,-13,-16,-11,-23,-25,-17,-30,-32,-11,-44,-44,-83,-47,-37,-30,-23,0,-16,0,-30,0,-29,-16,-23,29996,-33,-26,-82,-82,-106,-71,-95,-71,-275,-268,-267,-248,-343,-322,-764,-745,-712,-486,-989,-985,-29996,-4566,-6605,-4810,-29992,-29993,-29993,-29952,-29996,-29997,-29997,-29997]} 1. e4 {[%emt 0:00:01][%cal Be2e4,Be4e5][%mdl 32]} c6 {[%emt 0:00:00]} 2. d4 {[%emt 0:00:01]} d5 {[%emt 0:00:01]} 3. f3 {[%emt 0:00:01]} e6 {[%emt 0:00:05]} 4. Nc3 {[%emt 0:00:03]} Qb6 {[%emt 0:00:02]} 5. a3 {[%emt 0:00:07]} Nf6 {[%emt 0:00:02]} 6. e5 {[%emt 0:00:04]} Nfd7 {[%emt 0:00:02]} 7. f4 {[%emt 0:00:02]} c5 {[%emt 0:00:01]} 8. Nf3 {[%emt 0:00:06]} Nc6 {[%emt 0:00:03]} 9. Be3 {[%emt 0:00:18]} cxd4 {[%emt 0:00:10]} 10. Nxd4 {[%emt 0:00:09]} Nxd4 {[%emt 0:00:10]} 11. Bxd4 {[%emt 0:00:05]} Bc5 {[%emt 0:00:05]} 12. Na4 {[%emt 0:00:50]} Qa5+ {[%emt 0:00:06] The position is equal.} 13. b4 {[%emt 0:00:09]} Qxa4 {[%emt 0:00:02]} 14. bxc5 {[%emt 0:00:02][%cal Oc2c4]} Qc6 {[%emt 0:00:04]} 15. a4 {[%emt 0:00:07]} O-O {[%emt 0:00:23]} (15... Nxc5 $2 16. Bb5 Ne4 17. c4 $18 (17. Bxc6+ bxc6 18. O-O O-O $18)) 16. Bb5 {[%emt 0:00:22]} Qc7 {[%emt 0:00:01]} 17. Bxd7 {[%emt 0:00:24]} Bxd7 {[%emt 0:00:01]} 18. O-O {[%emt 0:00:01]} b6 {[%emt 0:00:01]} 19. cxb6 {[%emt 0:00:10]} axb6 {[%emt 0:00:01]} 20. c3 {[%emt 0:00:05]} Ra6 {[%emt 0:00:01][%cal Ba8a6,Ba6e6,Be6g6][%mdl 32]} 21. Qb3 {[%emt 0:00:10]} Rfa8 {[%emt 0:00:08][%cal Ob6b5]} 22. f5 {[%emt 0:00:23]} Bxa4 {[%emt 0:00:13]} 23. Qb1 {[%emt 0:00:05]} exf5 {[%emt 0:00:20]} 24. Qxf5 {[%emt 0:00:01]} b5 {[%emt 0:00:21]} 25. Rae1 {[%emt 0:00:03]} Re6 {[%emt 0:00:03]} 26. Rf3 {[%emt 0:00:01]} Rae8 {[%emt 0:00:03]} 27. Rh3 {[%emt 0:00:01]} Rg6 {[%emt 0:00:05][%cal Ob5b4]} 28. Rf1 {[%emt 0:00:02]} Qc8 $2 {[%emt 0:00:06][%mdl 8192] [#]} (28... Re7 $11) 29. Qf4 $2 {[%emt 0:00:07]} Qe6 {[%emt 0:00:02] Active counter play!} ({And not} 29... Qxh3 30. Qxf7+ Kh8 31. Qxe8#) 30. Rh5 {[%emt 0:00:00]} (30. Rhf3 $11 {keeps the balance.}) 30... Bc2 $40 {[%emt 0:00:06][%cal Ob5b4][%mdl 128] Hoping for ...b4! Black is out for blood.} 31. h3 {[%emt 0:00:00]} Be4 {[%emt 0:00:02]} 32. Rf2 {[%emt 0:00:02]} Rb8 {[%emt 0:00:13] White must now prevent ...h6.} 33. Bc5 $2 {[%emt 0:00:02] [#]} (33. Rg5 $17) 33... Rc8 {[%emt 0:00:06]} 34. Bd4 {[%emt 0:00:02]} Rc4 {[%emt 0:00:04] White is weak on the light squares} 35. Kh2 {[%emt 0:00:01]} b4 {[%emt 0:00:02]} 36. Qd2 {[%emt 0:00:02]} (36. Qe3) 36... bxc3 $19 {[%emt 0:00:05]} 37. Bxc3 {[%emt 0:00:01]} Qc6 {[%emt 0:00:04]} 38. Bd4 {[%emt 0:00:02]} (38. Rh4 $142 h6 (38... Rxc3 39. Rxe4 Re6 40. Ref4 $15) 39. Rxe4 Rxe4 (39... dxe4 $2 40. Bb2 $19) 40. Rf3) 38... Rc2 {[%emt 0:00:03]} 39. Qa5 {[%emt 0:00:02]} h6 {[%emt 0:00:08]} ({Inferior is} 39... Bxg2 40. Qd8+) (39... Rxg2+ $142 40. Rxg2 Rxg2+ 41. Kh1 Rd2+ 42. Kg1 Qc1#) 40. Qd8+ {[%emt 0:00:02]} Kh7 {[%emt 0:00:01]} 41. g4 {[%emt 0:00:02]} Rxf2+ {[%emt 0:00:04] Black mates.} 42. Bxf2 {[%emt 0:00:01]} Qc2 {[%emt 0:00:02][%cal Rc2f2]} 43. Kg1 {[%emt 0:00:04]} Qd1+ {[%emt 0:00:01]} 44. Kh2 {[%emt 0:00:02]} Qf3 {[%emt 0:00:02] Weighted Error Value: White=0.99/Black=0.51.  Loses game:     	White=1     	Black=1      Missed win:     	White=1     	---        Mistake:       	White=1     	---        Inaccurate:     	White=7     	Black=3      OK:         	White=8     	Black=10} 0-1

[Event "European Women Blitz-ch 2024"]
[Site "Monaco"]
[Date "2025.01.10"]
[Round "11.13"]
[White "Shvedova, Alexandra"]
[Black "Matnadze Bujiashvili, Ann"]
[Result "1-0"]
[Annotator "TA"]
[ECO "B12"]
[WhiteElo "2266"]
[BlackElo "2315"]
[PlyCount "69"]
[EventDate "2025.01.06"]
[EventType "swiss"]
[EventCountry "MNC"]
[SourceTitle "playchess.com"]
[Source "ChessBase"]
[SourceQuality "1"]
[TimeControl "180+2"]

{[%evp 9,69,45,41,43,78,54,84,47,59,20,22,25,26,16,22,18,14,13,25,0,0,-16,0,-2,216,218,215,181,260,270,233,163,426,410,407,204,219,217,294,251,261,246,260,264,356,337,335,330,398,381,392,389,662,631,960,916,29991,764,783,772,29986,29987]} 1. e4 {[%emt 0:00:02]} c6 {[%emt 0:00:01]} 2. d4 {[%emt 0:00:01]} d5 {[%emt 0:00:00]} 3. e5 {[%emt 0:00:01]} Bf5 {[%emt 0:00:05]} 4. Nf3 {[%emt 0:00:02]} Bg4 {[%emt 0:00:02]} 5. Be2 {[%emt 0:00:04]} e6 {[%emt 0:00:02]} 6. O-O {[%emt 0:00:03]} h5 {[%emt 0:00:01]} 7. Nbd2 {[%emt 0:00:10]} g6 {[%emt 0:00:02]} 8. Nb3 {[%emt 0:00:05]} Nh6 {[%emt 0:00:05]} 9. Bg5 {[%emt 0:00:12]} Be7 {[%emt 0:00:02]} 10. Bxe7 {[%emt 0:00:04]} Qxe7 {[%emt 0:00:01]} 11. Qd2 {[%emt 0:00:05]} Nf5 {[%emt 0:00:07]} 12. a4 {[%emt 0:00:09]} Nd7 {[%emt 0:00:09]} 13. a5 {[%emt 0:00:02]} Kf8 {[%emt 0:00:08]} 14. Rac1 {[%emt 0:00:11]} c5 {[%emt 0:00:23]} 15. c4 {[%emt 0:00:06]} dxc4 {[%emt 0:00:03]} 16. Rxc4 {[%emt 0:00:03]} cxd4 $2 {[%emt 0:00:14]} (16... b5 $11 {and Black is okay.} 17. axb6 axb6) 17. Nbxd4 $18 {[%emt 0:00:05]} Bxf3 {[%emt 0:00:07]} 18. Nxf3 {[%emt 0:00:07]} Nc5 {[%emt 0:00:19]} (18... Rd8 $142) 19. b4 {[%emt 0:00:13][%cal Bb2b4,Bb4b5][%mdl 32]} Na6 {[%emt 0:00:09]} 20. Rfc1 {[%emt 0:00:16]} Kg7 $2 {[%emt 0:00:07]} (20... b5) 21. b5 {[%emt 0:00:08]} Rad8 {[%emt 0:00:01]} 22. Qc3 {[%emt 0:00:05]} (22. Qg5 $142) 22... Nb8 {[%emt 0:00:05]} 23. Bd3 {[%emt 0:00:16]} b6 {[%emt 0:00:35]} 24. axb6 {[%emt 0:00:23]} axb6 {[%emt 0:00:01]} 25. Be4 {[%emt 0:00:08] Inhibits Rd5.} Rd7 {[%emt 0:00:10]} 26. h3 {[%emt 0:00:06]} Rhd8 {[%emt 0:00:03]} 27. Bxf5 {[%emt 0:00:07]} gxf5 {[%emt 0:00:01]} 28. Qe3 {[%emt 0:00:01]} Rd1+ {[%emt 0:00:08]} 29. Rxd1 {[%emt 0:00:06]} Rxd1+ {[%emt 0:00:01]} 30. Kh2 {[%emt 0:00:01][%cal Of3d4] Black must now prevent Nd4!.} Nd7 $2 {[%emt 0:00:06]} (30... Qd8 31. Ng5 Rd3) 31. Rh4 {[%emt 0:00:07]} Kg6 {[%emt 0:00:14]} 32. Qf4 {[%emt 0:00:03] Threatening mate with Qg3+.} Nf8 {[%emt 0:00:11]} 33. g4 {[%emt 0:00:09]} (33. Qg3+ $142 Kh6 34. Qg8 f6 35. g4 (35. Qh8+ Kg6 $18) 35... fxg4 36. hxg4 Qe8 37. exf6 (37. gxh5 Qe7 $18) 37... Qb8+ 38. Kg2 Qg3+ 39. fxg3 (39. Kxg3 Rg1+ 40. Nxg1 Nh7 41. Rxh5#) 39... Rg1+ 40. Kxg1 Nh7 41. Rxh5#) 33... fxg4 {[%emt 0:00:11]} 34. hxg4 {[%emt 0:00:02]} Qd8 {[%emt 0:00:12]} 35. Rxh5 {[%emt 0:00:05]} 1-0

[Event "European Women Blitz-ch 2024"]
[Site "Monaco"]
[Date "2025.01.10"]
[Round "11.14"]
[White "Khademalsharieh, Sarasadat"]
[Black "Kazarian, Anna-Maja"]
[Result "1-0"]
[Annotator "TA"]
[ECO "D10"]
[WhiteElo "2458"]
[BlackElo "2206"]
[PlyCount "69"]
[EventDate "2025.01.06"]
[EventType "swiss"]
[EventCountry "MNC"]
[SourceTitle "playchess.com"]
[Source "ChessBase"]
[SourceQuality "1"]
[TimeControl "180+2"]

{[%evp 21,69,25,25,0,0,0,0,0,0,-14,-16,-125,0,0,0,-31,-31,-29,-29,-33,-39,-31,-25,-29,0,-20,0,0,31,44,43,19,70,25,57,39,143,19,100,20,218,206,214,22,343,323,5281,5002,4898,628]} 1. d4 {[%emt 0:00:02]} d5 {[%emt 0:00:00]} 2. c4 {[%emt 0:00:01]} c6 {[%emt 0:00:01]} 3. cxd5 {[%emt 0:00:02]} cxd5 {[%emt 0:00:02]} 4. Bf4 {[%emt 0:00:01]} Nc6 {[%emt 0:00:00]} 5. e3 {[%emt 0:00:02]} Nf6 {[%emt 0:00:01]} 6. Nc3 {[%emt 0:00:01]} a6 {[%emt 0:00:10]} 7. Bd3 {[%emt 0:00:02]} e6 {[%emt 0:00:04]} 8. Nf3 {[%emt 0:00:12]} Bd6 {[%emt 0:00:04]} 9. Bxd6 {[%emt 0:00:09]} Qxd6 {[%emt 0:00:02]} 10. O-O {[%emt 0:00:02]} O-O {[%emt 0:00:03]} 11. Rc1 {[%emt 0:00:02]} b5 {[%emt 0:00:04]} 12. e4 {[%emt 0:00:16]} dxe4 {[%emt 0:00:53]} 13. Nxe4 {[%emt 0:00:02]} Nxe4 {[%emt 0:00:01]} 14. Bxe4 {[%emt 0:00:02]} Bb7 {[%emt 0:00:01]} 15. Ne5 {[%emt 0:01:18][%cal Re4c6]} (15. d5 {simplifies} Ne7 16. Qd3 Bxd5 17. Bxh7+ Kh8 18. Be4) 15... Rac8 {[%emt 0:00:01]} 16. Qh5 {[%emt 0:00:21]} (16. Re1 $11) 16... f5 {[%emt 0:00:10]} (16... g6 $17 17. Qh6 Nxd4 18. Rxc8 Bxc8) 17. Bxc6 $11 {[%emt 0:00:09]} Bxc6 {[%emt 0:00:02]} 18. Nxc6 {[%emt 0:00:02]} Rxc6 {[%emt 0:00:01]} 19. Qe2 {[%emt 0:00:12][%cal Oc1c5]} Rfc8 {[%emt 0:00:18]} 20. Rxc6 {[%emt 0:00:08]} Rxc6 {[%emt 0:00:02][%mdl 4096] Endgame KQR-KQR} 21. Rd1 {[%emt 0:00:03][%cal Od4d5]} Qd5 {[%emt 0:00:03]} 22. b3 {[%emt 0:00:06]} g6 {[%emt 0:00:16]} 23. h4 {[%emt 0:00:02]} Kf7 {[%emt 0:00:16]} 24. Qe3 {[%emt 0:00:03]} Rc7 {[%emt 0:00:56]} 25. Qh6 {[%emt 0:00:03]} Kg8 {[%emt 0:00:00]} 26. h5 $36 {[%emt 0:00:02][%mdl 2048] White has good play.} gxh5 {[%emt 0:00:09]} (26... Rg7 $11) 27. Qxh5 {[%emt 0:00:01]} Rf7 {[%emt 0:00:11]} 28. Rc1 {[%emt 0:00:05]} Qd7 {[%emt 0:00:01] Inhibits Rc8+.} ({Black should play} 28... Qxd4 $14 29. Rc6 Rf6) 29. Rc3 {[%emt 0:00:01] White is more active.} (29. Qh4 $16) 29... Rg7 {[%emt 0:00:02] [#]} (29... Qxd4 $11 {keeps the balance.} 30. Rc8+ Rf8) 30. Re3 {[%emt 0:00:10]} (30. Qe2 $1 $16) 30... Kf8 $2 {[%emt 0:00:01]} (30... Rg6 $11 {and Black has nothing to worry.}) 31. Qh6 $18 {[%emt 0:00:06]} Qd5 {[%emt 0:00:03][%csl Gg7][%cal Rd5g2]} 32. Rg3 $2 {[%emt 0:00:03]} (32. Qxe6 $2 Qxg2#) ({Better is} 32. g3 $18 Qxd4 33. Qxe6) 32... Qd7 $2 {[%emt 0:00:01][%mdl 8192] [#]} (32... Qxd4 $11 33. Rxg7 Qa1+ 34. Kh2 Qxg7 35. Qxe6 Qc7+ 36. g3 Qc5) 33. Qf6+ $1 {[%emt 0:00:05]} Qf7 $2 {[%emt 0:00:02]} (33... Kg8 34. Rxg7+ Qxg7 35. Qxe6+ Qf7 36. Qxa6 Qe8) 34. Qd8+ {[%emt 0:00:02]} Qe8 {[%emt 0:00:01]} 35. Qxe8+ {[%emt 0:00:01]} 1-0